{"text_format":"1","workbook":"xlsx","n_sheets":6,"sheets":["28 team Bracketology","Team Draws","Night 1","Night 2","Night 4 - Final Seeds","Night 3"],"not_rendered":{"charts":0,"images":0,"macros":1,"external_links":0,"defined_names":3,"comments":0,"pivot_tables":0},"unopened":[],"bounds":{"document_bytes":16777216,"sheet_cells":100000,"rows_first":2000,"rows_last":500,"rows_between":2000,"halvings":0,"cell_chars":16384,"cell_head_chars":4096},"cells_cut":0,"cells_raw":0,"read":"whole","date_system":"1900"}

{"sheet":"28 team Bracketology","index":0,"n_rows":219,"n_cols":20,"rows_kept":219,"cut":false,"hidden":false,"merged":[[10,9,11,10]]}
["28 Team brackets…  Bracketology",null,null,null,null,null,null,null,null,null,null,null,null,null,"2013 TEAMS"]
[null,"3 Nights- 11 round robin games & 4th night is Championship rounds",null,null,null,null,null,null,null,null,null,null,null,null,"Captain","Club",null,"Team"]
[null,null," @GS"," @LKP"," @SARC"," @CT"," @SARC",null,null,null,null,null,null,"Team 24","Jay Cupstid","Springdale","SARC","Mizfits"]
[null,null,"A","B","C","D","E",null,null,null,null,null,null,"Team 15","Jason Greico","Springdale","SARC","Volleywood"]
[null,"F",1,6,11,16,21,null," @GS",null,null,null,null,"Team 14","Jay Daft","Springdale","SARC","Sets on the Beach"]
[null,"G",2,7,12,17,22,26," @SARC",null,null,null,null,"Team 12","John Marks","Springdale","SARC","Sand Diggers"]
[null,"H",3,8,13,18,23,null," @CT",null,null,null,null,"Team 23","Shawn Mabe","Springdale","SARC","Id Hit That"]
[null,"I",4,9,14,19,24,28," @LKP",null,null,null,null,"Team 22","Phil Apostolico","Springdale","SARC","Raleigh Brawl"]
[null,"J",5,10,15,20,25,27," @SARC",null,null,null,null,"Team 2","Beth and Bruce Farell","Springdale","SARC","Dirt Devils"]
[null,null,null,28,26,null,27,null,null,null,null,null,null,"Team 20","Haleigh McCollum","Springdale","SARC","Good Bumps, Nice Sets"]
[null,null,"At Greystone","At Lake Park","At SARC","At Crabtree","At SARC",null,null,null,null,null,null,"Team 7","AP Blake","Springdale","SARC","Get it Up"]
[null,null,"A","B","C","D","E",null,null,null,null,null,null,"Team 26","Ray Gonzalez","Springdale","SARC","Mojo Rising"]
["At Greystone","F","GS-Rhymes With Stupid","GS-Gator SpikeDown","LKP- Bump in the Night","CT- Shankapotomus","LKP-Bumpn Uglies",null,null,null,null,null,null,"Team 27","Matt Vaughan","Springdale","SARC","Notorious D.I.G."]
["At SARC","G","SARC-Dirt Devils","SARC- Get It Up","SARC-Sand Dig","GS-Sand Gators","SARC-Ral Brawl","SARC -Mojo Rising",null,null,null,null,null,"Team 19","Greg Klofenstine","Lakepark","LKP","Tir-Na-Nog"]
["At Crabtree","H","NR- Six Pack","LKP- Air Vectors","CT- The Snafu Crew","CT- Norfolk in Chance ","SARC-Id Hit That",null,null,null,null,null,null,"Team 9","John Allen","Lakepark","LKP","Will Play for Sets"]
["At Lake Park","I","NR-The Strikers","LKP- Will Play","SARC-Sets Beach","LKP - Tir Na Nog","SARC-Mizfits","LKP- Casual Sets",null,null,null,null,null,"Team 21","Ken Muller","Lakepark","LKP","Bumpin' Uglies"]
["At SARC","J","GS-Swampmasters","Seven Oaks","SARC-Volleywood","SARC-Good Bumps, Nice Sets","SPONSOR TEAM","SARC- Notorious DIG",null,null,null,null,null,"Team 28","Dave Radcliffe","Lakepark","LKP","Casual Sets"]
[null,null,null,"LKP- Casual Sets","SARC -Mojo Rising",null,"SARC- Notorious DIG",null,null,null,null,null,null,"Team 8","Lawerence Lee","Lakepark","LKP","Air Vectors"]
[null,null,null,null,null,null,null,null,null,null,null,null,null,"Team 11","Jim Perotti","Lakepark","LKP","Go Bump in the Night"]
["Night 1- All teams At Springdale- each team play 2 games on sand and 1 game on grass courts",null,null,null,null,null,null,null,null,null,null,null,null,"Team 10","Vinnie Smith","Seven Oaks","SO","Seven Oaks"]
[null,"Brackets are Columns A-E",null,null,null,null,null,null,null,null,null,null,null,"Team 18","Phil Rahn","Crabtree","CT","Norfolk in Chance"]
[null,"Div A plays 3 teams from Div B",null,null,null,"Div E is worked in the schedule of A/B and C/D brackets",null,null,null,null,null,null,null,"Team 16","Mattney Beck","Crabtree","CT","Shankapotomus"]
[null,"Div C plays 3 teams from Div D",null,null,null,null,null,null,null,null,null,null,null,"Team 13","Ron Burt","Crabtree","CT",3]
["Night 2 - (Brackets are columns A-E -play teams within their bracket at 5 different courts, each team play 4 games)",null,null,null,null,null,null,null,null,null,null,null,null,"Team 5","Joe Cockerham","Greystone","GS","Swampmasters"]
[null,"Example: Column A and B play at Springdale's 2 courts.  Column C plays a Lakepark upper court.  Column D plays a Crabtree",null,null,null,null,null,null,null,null,null,null,null,"Team 1","Greg Wait","Greystone","GS","Rhymes With Stupid"]
[null,null,null,null,null,null,null,null,null,null,null,null,null,"Team 6","Andrew Patterson","Greystone","GS","Gator Spikedown"]
["Night 3",null,null,null,null,null,null,null,null,null,null,null,null,"Team 17","Christiana Culligan","Greystone","GS","Sand Gators"]
["Brackets are","Rows F-J","5 different","courts","4 games",null,null,null,null,null,null,null,null,"Team 3","Jim White","North Raleigh","NR","Six Pack Attack"]
[null,"Same courts as week 2",null,"but also at Greystone",null,null,null,null,null,null,null,null,null,"Team 4","Steve Hamilton","North Raleigh","NR","The Strikers"]
[null,null,null,null,null,null,null,null,null,null,null,null,null,"Team 25","Glyn Jones / John Rhodes","Team Sponsors","SPN","Sponsors"]
["Night 4- Championship Night at Springdale- Top 19 teams"]
[]
[null,"Examples of pairings of teams"]
[null,"night 1","night 2","night 3"]
[]
[null,"Team 1 Example (night 1- play 7,8,9) (night 2-play 2,3,4,5) (night 3- play 6,11,16,21)"]
[null,"A","B","C","D","E"]
["F",1,6,11,16,21]
["G",2,7,12,17,22,26]
["H",3,8,13,18,23]
["I",4,9,14,19,24,28]
["J",5,10,15,20,25,27]
[null,null,28,26,null,27]
[null,"Team 19 Example"]
[null,"A","B","C","D","E"]
["F",1,6,11,16,21,null,null,null,null,null,null,"Team 8 Example"]
["G",2,7,12,17,22,26,null,null,null,null,null,"A","B","C","D","E"]
["H",3,8,13,18,23,null,null,null,null,null,"F",1,6,11,16,21]
["I",4,9,14,19,24,28,null,null,null,null,"G",2,7,12,17,22,26]
["J",5,10,15,20,25,27,null,null,null,null,"H",3,8,13,18,23]
[null,null,28,26,null,27,null,null,null,null,null,"I",4,9,14,19,24,28]
[null,null,null,null,null,null,null,null,null,null,null,"J",5,10,15,20,25,27]
[null,null,null,null,null,null,null,null,null,null,null,null,null,28,26,null,27]
["Night 1-  Tuesday July 30th"]
["Night 1- All teams At Springdale- each team play 2 games on sand and 1 game on grass courts"]
[]
[]
[null,null,"Court","Home","Away"]
[null,"05:30:00","Sand 1","GS- Gator Spikedown","LKP- Casual Sets"]
[null,null,"Sand 2","SO- Seven Oaks","SARC- Raleigh Brawl"]
[null,null,"Sand 3","NR- Six Pack Attack","LKP- Bumpin' Uglies"]
[null,null,"Grass 1","SARC- Dirt Devils","LKP- Air Vectors"]
[null,null,"Grass 2","SARC- Mojo Rising","SARC- Notorious D.I.G."]
[null,"06:00:00","Sand 1","SARC- I'd Hit That","SARC- Mojo Rising"]
[null,null,"Sand 2","SPN- Sponsors","LKP- Air Vectors"]
[null,null,"Sand 3","SARC- Notorious D.I.G.","NR- The Strikers"]
[null,null,"Grass 1","GS- Rhymes With Stupid","SARC- Get It Up"]
[null,null,"Grass 2","LKP- Will Play for Sets","NR- Six Pack Attack"]
[null,"06:30:00","Sand 1","SARC- Get It Up","GS- Swampmasters"]
[null,null,"Sand 2","SARC- Dirt Devils","SARC- I'd Hit That"]
[null,null,"Sand 3","GS- Gator Spikedown","SARC- Mizfits"]
[null,null,"Grass 1","LKP- Bumpin' Uglies","LKP- Casual Sets"]
[null,null,"Grass 2","NR- The Strikers","SO- Seven Oaks"]
[null,"07:00:00","Sand 1","LKP- Casual Sets","CT- The Snafu Crew"]
[null,null,"Sand 2","SARC- Mojo Rising","SARC- Good Bumps, Nice Sets"]
[null,null,"Sand 3","SARC- Raleigh Brawl","SARC- Notorious D.I.G."]
[null,null,"Grass 1","LKP- Go Bump in the Night","GS- Sand Gators"]
[null,null,"Grass 2","SARC- Sand Diggers","CT- Norfolk in Chance "]
[null,"07:30:00","Sand 1","SARC- Mizfits","SO- Seven Oaks"]
[null,null,"Sand 2","NR- Six Pack Attack","SPN- Sponsors"]
[null,null,"Sand 3","LKP- Air Vectors","GS- Rhymes With Stupid"]
[null,null,"Grass 1","CT- The Snafu Crew","LKP- Tir-Na-Nog"]
[null,null,"Grass 2","GS- Swampmasters","GS- Gator Spikedown"]
[null,"08:00:00","Sand 1","LKP- Bumpin' Uglies","SARC- Dirt Devils"]
[null,null,"Sand 2","SARC- Raleigh Brawl","LKP- Will Play for Sets"]
[null,null,"Sand 3","NR- The Strikers","SARC- Get It Up"]
[null,null,"Grass 1","SARC- Sets on the Beach","SARC- Good Bumps, Nice Sets"]
[null,null,"Grass 2","SARC- Volleywood","CT- Shankapotomus"]
[null,"08:30:00","Sand 1","SPN- Sponsors","GS- Sand Gators"]
[null,null,"Sand 2","CT- Norfolk in Chance ","LKP- Go Bump in the Night"]
[null,null,"Sand 3","SARC- Mizfits","GS- Swampmasters"]
[null,"09:00:00","Sand 1","SARC- I'd Hit That","GS- Rhymes With Stupid"]
[null,null,"Sand 2","LKP- Tir-Na-Nog","SARC- Sand Diggers"]
[null,null,"Sand 3","GS- Sand Gators","SARC- Sets on the Beach"]
[null,"09:30:00","Sand 1","CT- The Snafu Crew","CT- Shankapotomus"]
[null,null,"Sand 2","SARC- Sand Diggers","SARC- Good Bumps, Nice Sets"]
[null,null,"Sand 3","CT- Norfolk in Chance ","SARC- Volleywood"]
[null,"10:00:00","Sand 1","SARC- Volleywood","LKP- Will Play for Sets",null,"2012 Growler Cup Rematch"]
[null,null,"Sand 2","CT- Shankapotomus","SARC- Sets on the Beach"]
[null,null,"Sand 3","LKP- Go Bump in the Night","LKP- Tir-Na-Nog"]
[]
[]
[]
[]
["Night 2","5 different courts w/ 5 teams in each bracket"]
[null,"Play 4 games each… "]
[null,null,null,null,null,null,null,null,null,null,null,"   ---- At Greystone      "]
["    ---- At Springdale ",null,null,"Court 1",null,null,"Court 3",null,null,null,null,"Court 1",null,null,"Court 2",null,null,"   -- Crabtree"]
[null,null,null,"Home","Away",null,"Home","Away",null,null,null,"Home","Away",null,"Home","Away",null,null,"Home","Away"]
[null,null,"18:00:00","LKP- Go Bump in the Night","SARC- Sand Diggers",null,"SARC- Sets on the Beach","SARC- Volleywood",null,null,"18:00:00","GS- Rhymes With Stupid","SARC- Dirt Devils",null,"GS- Swampmasters","NR- Six Pack Attack",null,"18:00:00","CT- Shankapotomus","GS-Sand Gators"]
[null,null,"18:30:00","CT- The Snafu Crew","LKP- Go Bump in the Night",null,null,null,null,null,"18:30:00","NR- Six Pack Attack","GS- Rhymes With Stupid",null,"NR- The Strikers","GS- Swampmasters",null,"18:30:00","CT- Norfolk in Chance ","CT- Shankapotomus"]
[null,null,"19:00:00","SARC- Volleywood","CT- The Snafu Crew",null,"SARC- Sets on the Beach","SARC- Sand Diggers",null,null,"19:00:00","NR- The Strikers","SARC- Dirt Devils",null,null,null,null,"19:00:00","LKP - Tir Na Nog","GS-Sand Gators"]
[null,null,"19:30:00","LKP- Go Bump in the Night","SARC- Mojo Rising",null,null,null,null,null,"19:30:00","GS- Swampmasters","GS- Rhymes With Stupid",null,"SARC- Dirt Devils","NR- Six Pack Attack",null,"19:30:00","SARC-Good Bumps, Nice Sets","CT- Shankapotomus"]
[null,null,"20:00:00","SARC- Sand Diggers","CT- The Snafu Crew",null,"SARC- Mojo Rising","SARC- Volleywood",null,null,"20:00:00","GS- Rhymes With Stupid","NR- The Strikers",null,null,null,null,"20:00:00","GS-Sand Gators","CT- Norfolk in Chance "]
[null,null,"20:30:00","LKP- Go Bump in the Night","SARC- Sets on the Beach",null,null,null,null,null,"20:30:00","SARC- Dirt Devils","GS- Swampmasters",null,null,null,null,"20:30:00","CT- Shankapotomus","LKP - Tir Na Nog"]
[null,null,"21:00:00","SARC- Sand Diggers","SARC- Volleywood",null,null,null,null,null,"21:00:00","NR- Six Pack Attack","NR- The Strikers",null,null,null,null,"21:00:00","GS-Sand Gators","SARC-Good Bumps, Nice Sets"]
[null,null,"21:30:00","CT- The Snafu Crew","SARC- Mojo Rising",null,null,null,null,null,"21:30:00",null,null,null,null,null,null,"21:30:00","CT- Norfolk in Chance ","LKP - Tir Na Nog"]
[null,null,"22:00:00","SARC- Mojo Rising","SARC- Sets on the Beach",null,null,null,null,null,"22:00:00",null,null,null,null,null,null,"22:00:00","LKP - Tir Na Nog","SARC-Good Bumps, Nice Sets"]
[null,null,"22:30:00",null,null,null,null,null,null,null,"22:30:00",null,null,null,null,null,null,"22:30:00","SARC-Good Bumps, Nice Sets","CT- Norfolk in Chance "]
["    ---- At Springdale ",null,null,"Court 2"]
[null,null,null,"Home","Away",null,"Home","Away",null,null,null,"  -- LakePark"]
[null,null,"18:00:00","LKP- Bumpin' Uglies","SARC- Raleigh Brawl",null,null,null,null,null,null,"Court 1",null,null,"LKP Court 2"]
[null,null,"18:30:00","SARC- Mizfits","SPN- Sponsors",null,"SARC- I'd Hit That","LKP- Bumpin' Uglies",null,null,null,"Home","Away",null,"Home","Away"]
[null,null,"19:00:00","SARC- Mizfits","SARC- Raleigh Brawl",null,null,null,null,null,"18:00:00","GS- Gator Spikedown","SARC- Get It Up",null,"SO- Seven Oaks","LKP- Air Vectors"]
[null,null,"19:30:00","SPN- Sponsors","SARC- I'd Hit That",null,"SARC- Notorious D.I.G.","LKP- Bumpin' Uglies",null,null,"18:30:00","SO- Seven Oaks","GS- Gator Spikedown",null,"LKP- Will Play for Sets","LKP- Casual Sets"]
[null,null,"20:00:00","SARC- Raleigh Brawl","SARC- I'd Hit That",null,null,null,null,null,"19:00:00","LKP- Casual Sets","LKP- Air Vectors",null,"LKP- Will Play for Sets","SARC- Get It Up"]
[null,null,"20:30:00","LKP- Bumpin' Uglies","SARC- Mizfits",null,"SPN- Sponsors","SARC- Notorious D.I.G.",null,null,"19:30:00","LKP- Air Vectors","GS- Gator Spikedown",null,"SARC- Get It Up","SO- Seven Oaks"]
[null,null,"21:00:00","SARC- Raleigh Brawl","SPN- Sponsors",null,null,null,null,null,"20:00:00","GS- Gator Spikedown","LKP- Will Play for Sets",null,"LKP- Casual Sets","SO- Seven Oaks"]
[null,null,"21:30:00","SARC- I'd Hit That","SARC- Notorious D.I.G.",null,null,null,null,null,"20:30:00","SARC- Get It Up","LKP- Casual Sets",null,"LKP- Air Vectors","LKP- Will Play for Sets"]
[null,null,"22:00:00","SARC- Notorious D.I.G.","SARC- Mizfits",null,null,null,null,null,"21:00:00"]
[null,null,"22:30:00",null,null,null,null,null,null,null,"21:30:00"]
[]
[]
["Night 3"]
[null,"Play 4 games each…  "]
[null,null,null,null,null,null,null,null,null,null,null,"   ---- At Greystone      "]
[" ----- At Springdale",null,null,"Court 1",null,null,"Court 3",null,null,null,null,"Court 1",null,null,"Court 2",null,null,"   -- Crabtree"]
[null,null,null,"Home","Away",null,"Home","Away",null,null,null,"Home","Away",null,"Home","Away",null,null,"Home","Away"]
[null,null,"18:00:00","GS- Sand Gators","SARC- Raleigh Brawl",null,"SARC- Dirt Devils","SARC- Get It Up",null,null,"18:00:00","GS- Rhymes With Stupid","GS- Gator Spikedown",null,"LKP- Bumpin' Uglies","LKP- Go Bump in the Night",null,"18:00:00","NR- Six Pack","LKP- Air Vectors"]
[null,null,"18:30:00","SARC- Sand Diggers","SARC- Dirt Devils",null,null,null,null,null,"18:30:00","LKP- Go Bump in the Night","GS- Rhymes With Stupid",null,"CT- Shankapotomus","LKP- Bumpin' Uglies",null,"18:30:00","CT- The Snafu Crew","NR- Six Pack"]
[null,null,"19:00:00","GS- Sand Gators","SARC- Get It Up",null,"SARC- Raleigh Brawl","SARC- Sand Diggers",null,null,"19:00:00","CT- Shankapotomus","GS- Gator Spikedown",null,null,null,null,"19:00:00","CT- Norfolk in Chance ","LKP- Air Vectors"]
[null,null,"19:30:00","SARC- Get It Up","SARC- Mojo Rising",null,null,null,null,null,"19:30:00","LKP- Bumpin' Uglies","GS- Rhymes With Stupid",null,"GS- Gator Spikedown","LKP- Go Bump in the Night",null,"19:30:00","SARC-Id Hit That","NR- Six Pack"]
[null,null,"20:00:00","SARC- Raleigh Brawl","SARC- Dirt Devils",null,"GS- Sand Gators","SARC- Sand Diggers",null,null,"20:00:00","GS- Rhymes With Stupid","CT- Shankapotomus",null,null,null,null,"20:00:00","LKP- Air Vectors","CT- The Snafu Crew"]
[null,null,"20:30:00","SARC- Mojo Rising","SARC- Dirt Devils",null,null,null,null,null,"20:30:00","GS- Gator Spikedown","LKP- Bumpin' Uglies",null,null,null,null,"20:30:00","NR- Six Pack","CT- Norfolk in Chance "]
[null,null,"21:00:00","SARC- Get It Up","SARC- Raleigh Brawl",null,null,null,null,null,"21:00:00","LKP- Go Bump in the Night","CT- Shankapotomus",null,null,null,null,"21:00:00","LKP- Air Vectors","SARC-Id Hit That"]
[null,null,"21:30:00","SARC- Sand Diggers","SARC- Mojo Rising",null,null,null,null,null,"21:30:00",null,null,null,null,null,null,"21:30:00","CT- The Snafu Crew","CT- Norfolk in Chance "]
[null,null,"22:00:00","SARC- Mojo Rising","GS- Sand Gators",null,null,null,null,null,"22:00:00",null,null,null,null,null,null,"22:00:00","CT- Norfolk in Chance ","SARC-Id Hit That"]
[null,null,"22:30:00",null,null,null,null,null,null,null,"22:30:00",null,null,null,null,null,null,"22:30:00","SARC-Id Hit That","CT- The Snafu Crew"]
[]
[]
[null,null,null,null,null,null,null,null,null,null,null,"  -- LakePark"]
[" ----- At Springdale",null,null,"Court 2",null,null,null,null,null,null,null,"Court 1",null,null,"LKP Court 2"]
[null,null,null,"Home","Away",null,"Home","Away",null,null,null,"Home","Away",null,"Home","Away"]
[null,null,"18:00:00","GS- Swampmasters","SO- Seven Oaks",null,null,null,null,null,"18:00:00","SARC- Mizfits","SARC- Sets on the Beach",null,"NR- The Strikers","LKP- Tir-Na-Nog"]
[null,null,"18:30:00","SARC- Notorious D.I.G.","SARC- Good Bumps, Nice Sets",null,"SARC- Volleywood","GS- Swampmasters",null,null,"18:30:00","NR- The Strikers","LKP- Will Play for Sets",null,"LKP- Tir-Na-Nog","LKP- Casual Sets"]
[null,null,"19:00:00","SPN- Sponsors","SARC- Volleywood",null,null,null,null,null,"19:00:00","LKP- Casual Sets","SARC- Sets on the Beach",null,"LKP- Will Play for Sets","SARC- Mizfits"]
[null,null,"19:30:00","SARC- Notorious D.I.G.","GS- Swampmasters",null,"SARC- Good Bumps, Nice Sets","SO- Seven Oaks",null,null,"19:30:00","SARC- Mizfits","NR- The Strikers",null,"SARC- Sets on the Beach","LKP- Tir-Na-Nog"]
[null,null,"20:00:00","SPN- Sponsors","SARC- Good Bumps, Nice Sets",null,null,null,null,null,"20:00:00","LKP- Tir-Na-Nog","LKP- Will Play for Sets",null,"NR- The Strikers","LKP- Casual Sets"]
[null,null,"20:30:00","SARC- Volleywood","SARC- Notorious D.I.G.",null,"SPN- Sponsors","GS- Swampmasters",null,null,"20:30:00","LKP- Will Play for Sets","SARC- Sets on the Beach",null,"LKP- Casual Sets","SARC- Mizfits"]
[null,null,"21:00:00","SARC- Notorious D.I.G.","SO- Seven Oaks",null,null,null,null,null,"21:00:00"]
[null,null,"21:30:00","SO- Seven Oaks","SPN- Sponsors",null,null,null,null,null,"21:30:00"]
[null,null,"22:00:00","SARC- Volleywood","SARC- Good Bumps, Nice Sets",null,null,null,null,null,"22:00:00"]
[]
[]
["Night 4"]
[]
[null,"Aug 20 Championship Night Brackets"]
[null,null,null,null,null,null,null,"court 1","court 2","court 3"]
[null,"28 TEAM SINGLE ELIMINATION SEEDED TOURNAMENT"]
[]
["17:30:00","18:00:00","18:30:00","19:00:00","19:30:00","20:00:00","20:30:00","21:00:00","21:30:00","22:00:00",null,"22:35:00"]
[]
[]
[null,null,null,null,null,null,null,null,"  Announce-ments and Raffle","FINAL FOUR","5   min  ","GROWLER CHAMPIONSHIP"]
[null,null,16]
[]
[null,null,17]
[]
[null,null,null,null,1]
[8]
[]
[25]
[]
[9]
[]
[24]
[null,5]
[]
[null,28]
[12]
[]
[21]
[null,null,null,null,null,4]
[]
[null,null,20]
[]
[]
[null,null,13]
[null,null,null,null,null,2]
[null,null,null,15]
[]
[]
[null,7,null,18]
[]
[null,26]
[null,null,null,10]
[]
[]
[null,6,null,23]
[]
[null,27,null,11]
[]
[]
[null,null,null,22]
[null,null,null,null,null,3]
[null,null,19]
[null,null,null,null,null,null,null,null,null,null,null,null,null," "]
[]
[null,null,14]

{"sheet":"Team Draws","index":1,"n_rows":39,"n_cols":17,"rows_kept":39,"cut":false,"hidden":true,"merged":[]}
["Team Draws"]
[]
["25 Team brackets…  Bracketology"]
[null,"3 Nights- 11 round robin games & 4th night is Championship rounds"]
[null,null,null,null,null,null,null,null,null,null,null,null,"At Greystone","At Lake Park","At SARC","At Crabtree","At SARC"]
[null,null,"A","B","C","D","E",null,null,null,null,null,"A","B","C","D","E"]
[null,"F",1,6,11,16,21,null,null,null,"At Greystone","F","SARC-Mojo Rising","GS-Gator Done!","NR-The Strikers","LKP-Bazinga","SARC-Volleywood"]
[null,"G",2,7,12,17,22,null,null,null,"At SARC","G","NR- Six Pack Attack","SARC-Sets On the Beach","LKP-Meatballs","GS-Sand Gators","SARC-Raleigh Brawl"]
[null,"H",3,8,13,18,23,null,null,null,"At Crabtree","H","Seven Oaks","SARC-Good Bumps,Nice Sets","SARC-Mizfits","CT-Scared Hitless","LKP-Bumpn' Uglies"]
[null,"I",4,9,14,19,24,null,null,null,"At Lake Park","I","GS-Spiked Gators","LKP- Will Play for Sets","CT-Sand Sharks","SARC-I'd Hit That","HodgePodge"]
[null,"J",5,10,15,20,25,null,null,null,"At SARC","J","LKP-The Killers","CT-Serves of Steel","SARC-Sand Diggers","SARC-Dirt Devils","GS-Swampmasters"]
[]
["Standings After 3 Weeks-"]
[null,null,"Night 1","Night 2","Night 3","Overall","1st Tie Break","2nd Tie Break- Point Differential of all games","Championship Seed"]
["Team 21","SARC-Volleywood","3-0","4-0","4-0","11-0",null,125,1,"SARC-Volleywood"]
["Team 9","LKP- Will Play for Sets","3-0","4-0","3-1","10-1","didn't play each other- use pts",110,2,"LKP- Will Play for Sets"]
["Team 2","NR- Six Pack Attack","2-1","4-0","4-0","10-1","didn't play each other- use pts",100,3,"NR- Six Pack Attack"]
["Team 15","SARC-Sand Diggers","3-0","3-1","3-1","9-2","S Diggers beat Bazinga",74,4,"SARC-Sand Diggers"]
["Team 16","LKP-Bazinga","2-1","4-0","3-1","9-2","lost to S Diggers",61,5,"LKP-Bazinga"]
["Team 19","SARC-I'd Hit That","3-0","2-2","3-1","8-3","I'd Hit That beat Sharks",34,6,"SARC-I'd Hit That"]
["Team 14","CT-Sand Sharks","2-1","3-1","3-1","8-3","lost to I'd Hit That",51,7,"CT-Sand Sharks"]
["Team 3","Seven Oaks","1-2","3-1","3-1","7-4","5 way tie- didn't all play each- use pts",63,8,"Seven Oaks"]
["Team 22","SARC-Raleigh Brawl","2-1","3-1","2-2","7-4","5 way tie- didn't all play each- use pts",40,9,"SARC-Raleigh Brawl"]
["Team 18","CT-Scared Hitless","2-1","3-1","2-2","7-4","5 way tie- didn't all play each- use pts",39,10,"CT-Scared Hitless"]
["Team 5","LKP-The Killers","2-1","1-3","4-0","7-4","5 way tie- didn't all play each- use pts",29,11,"LKP-The Killers"]
["Team 8","SARC-Good Bumps,Nice Sets","2-1","2-2","3-1","7-4","5 way tie- didn't all play each- use pts",12,12,"SARC-Good Bumps,Nice Sets"]
["Team 11","NR-The Strikers","1-2","3-1","2-2","6-5","didn't play each other- use pts",41,13,"NR-The Strikers"]
["Team 23","LKP-Bumpn' Uglies","2-1","2-2","2-2","6-5","didn't play each other- use pts",5,14,"LKP-Bumpn' Uglies"]
["Team 6","GS-Gator Done!","2-1","2-2","1-3","5-6",null,-21,15,"GS-Gator Done!"]
["Team 12","LKP-Meatballs","1-2","0-4","3-1","4-7",null,-36,16,"LKP-Meatballs"]
["Team 25","GS-Swampmasters","0-3","1-3","2-2","3-8","3 played each other- SM won both",-55,17,"GS-Swampmasters"]
["Team 24","HodgePodge","2-1","0-4","1-3","3-8","HodgeP beat Steel, lost to SM",-40,18,"HodgePodge"]
["Team 10","CT-Serves of Steel","1-2","2-2","0-4","3-8","3 played each other- Steel lost both",-59,19,"CT-Serves of Steel"]
["Team 20","SARC-Dirt Devils","0-3","1-3","1-3","2-9","didn't play each other- use pts",-65,20,"SARC-Dirt Devils"]
["Team 1","SARC-Mojo Rising","1-2","1-3","0-4","2-9","didn't play each other- use pts",-91,21,"SARC-Mojo Rising"]
["Team 7","SARC-Sets On the Beach","1-2","0-4","0-4","1-10","4 way tie- didn't all play each- use pts",-55,22,"SARC-Sets On the Beach"]
["Team 17","GS-Sand Gators","0-3","0-4","1-3","1-10","4 way tie- didn't all play each- use pts",-97,23,"GS-Sand Gators"]
["Team 13","SARC-Mizfits","0-4","1-3","0-4","1-11","4 way tie- didn't all play each- use pts","-118",24,"SARC-Mizfits","**adjusted pts based on ave pt differential (130 unadjusted)"]
["Team 4","GS-Spiked Gators","0-3","1-3","0-4","1-10","4 way tie- didn't all play each- use pts",-135,25,"GS-Spiked Gators"]

{"sheet":"Night 1","index":2,"n_rows":81,"n_cols":14,"rows_kept":81,"cut":false,"hidden":false,"merged":[[3,0,3,4],[4,0,4,4]]}
["Opening Night Schedule"]
["Tues, July 30 th"]
[]
["Night 1- All teams At Springdale- each team play 2 games on sand and 1 game on grass courts"]
["Even though we play for 5 1/2 hours, individual teams are scheduled to play either earlier or later so they don't have long breaks between games."]
[null,null,null,null,null,null,"Score"]
[null,null,null,null,null,null,"Score"]
[null,null,"Court","Home","Away",null,"W","L","Winner","Pt Diff",null,null,null,"Sand 1"]
[null,"05:30:00","Sand 1","GS- Gator Spikedown","LKP- Casual Sets",null,21,2,"LKP- Casual Sets",{"$f":"G9-H9","v":19},null,null,"05:30:00","GS- Gator Spikedown vs LKP- Casual Sets"]
[null,null,"Sand 2","SO- Seven Oaks","SARC- Raleigh Brawl",null,21,5,"SARC- Raleigh Brawl",{"$f":"G10-H10","v":16},null,null,"06:00:00","SARC- Id Hit That vs SARC- Mojo Rising"]
[null,null,"Sand 3","NR- Six Pack Attack","LKP- Bumpin' Uglies",null,21,19,"LKP- Bumpin' Uglies",2,null,null,"06:30:00","SARC- Get It Up vs GS- Swampmasters"]
[null,null,"Grass 1","SARC- Dirt Devils","LKP- Air Vectors",null,21,6,"LKP- Air Vectors",15,null,null,"07:00:00","LKP- Casual Sets"]
[null,null,"Grass 2","SARC- Mojo Rising","SARC- Notorious D.I.G.",null,21,10,"SARC- Notorious D.I.G.",11,null,null,"07:30:00","SARC- Mizfits vs SO- Seven Oaks"]
[null,"06:00:00","Sand 1","SARC- I'd Hit That","SARC- Mojo Rising",null,21,9,"SARC- I'd Hit That",12,null,null,"08:00:00","LKP- Bumpin' Uglies vs SARC- Dirt Devils"]
[null,null,"Sand 2","SPN- Sponsors","LKP- Air Vectors",null,21,14,"LKP- Air Vectors",7,null,null,"08:30:00","SPN- Sponsors vs GS- Sand Gators"]
[null,null,"Sand 3","SARC- Notorious D.I.G.","NR- The Strikers",null,21,15,"SARC- Notorious D.I.G.",6,null,null,"09:00:00","SARC- Id Hit That vs GS- Rhymes With Stupid"]
[null,null,"Grass 1","GS- Rhymes With Stupid","SARC- Get It Up",null,23,21,"SARC- Get It Up",2,null,null,"09:30:00","CT- The Snafu Crew vs CT- Shankapotomus"]
[null,null,"Grass 2","LKP- Will Play for Sets","NR- Six Pack Attack",null,21,3,"LKP- Will Play for Sets",18,null,null,"10:00:00","SARC- Volleywood vs LKP- Will Play for Sets"]
[null,"06:30:00","Sand 1","SARC- Get It Up","GS- Swampmasters",null,21,3,"GS- Swampmasters",18]
[null,null,"Sand 2","SARC- Dirt Devils","SARC- I'd Hit That",null,21,12,"SARC- I'd Hit That",9]
[null,null,"Sand 3","GS- Gator Spikedown","SARC- Mizfits",null,21,12,"GS- Gator Spikedown",9]
[null,null,"Grass 1","LKP- Bumpin' Uglies","LKP- Casual Sets",null,21,16,"LKP- Bumpin' Uglies",5,null,null,"START Times Approx…  Start Immediately after the game ahead"]
[null,null,"Grass 2","NR- The Strikers","SO- Seven Oaks",null,21,5,"NR- The Strikers",16]
[null,"07:00:00","Sand 1","LKP- Casual Sets","CT- The Snafu Crew",null,21,8,"LKP- Casual Sets",13,null,null,null,"Sand 2"]
[null,null,"Sand 2","SARC- Mojo Rising","SARC- Good Bumps, Nice Sets",null,21,9,"SARC- Good Bumps, Nice Sets",12,null,null,"05:30:00","SO- Seven Oaks vs SARC- Raleigh Brawl"]
[null,null,"Sand 3","SARC- Raleigh Brawl","SARC- Notorious D.I.G.",null,21,11,"SARC- Raleigh Brawl",10,null,null,"06:00:00","SPN- Sponsors vs LKP- Air Vectors"]
[null,null,"Grass 1","LKP- Go Bump in the Night","GS- Sand Gators",null,21,11,"GS- Sand Gators",10,null,null,"06:30:00","SARC- Dirt Devils vs SARC- Id Hit That"]
[null,null,"Grass 2","SARC- Sand Diggers","CT- Norfolk in Chance ",null,21,9,"SARC- Sand Diggers",12,null,null,"07:00:00","SARC- Mojo Rising vs SARC- Good Bumps, Nice Sets"]
[null,"07:30:00","Sand 1","SARC- Mizfits","SO- Seven Oaks",null,21,14,"SO- Seven Oaks",7,null,null,"07:30:00","NR- Six Pack Attack vs SPN- Sponsors"]
[null,null,"Sand 2","NR- Six Pack Attack","SPN- Sponsors",null,21,3,"NR- Six Pack Attack",18,null,null,"08:00:00","SARC- Raleigh Brawl vs LKP- Will Play for Sets"]
[null,null,"Sand 3","LKP- Air Vectors","GS- Rhymes With Stupid",null,21,13,"LKP- Air Vectors",8,null,null,"08:30:00","CT- Norfolk in Chance  vs LKP- Go Bump in the Night"]
[null,null,"Grass 1","CT- The Snafu Crew","LKP- Tir-Na-Nog",null,21,9,"LKP- Tir-Na-Nog",12,null,null,"09:00:00","LKP- Tir-Na-Nog vs SARC- Sand Diggers"]
[null,null,"Grass 2","GS- Swampmasters","GS- Gator Spikedown",null,21,8,"GS- Swampmasters",13,null,null,"09:30:00","SARC- Sand Diggers vs SARC- Good Bumps, Nice Sets"]
[null,"08:00:00","Sand 1","LKP- Bumpin' Uglies","SARC- Dirt Devils",null,21,11,"LKP- Bumpin' Uglies",10,null,null,"10:00:00","CT- Shankapotomus vs SARC- Sets on the Beach"]
[null,null,"Sand 2","SARC- Raleigh Brawl","LKP- Will Play for Sets",null,21,6,"LKP- Will Play for Sets",15]
[null,null,"Sand 3","NR- The Strikers","SARC- Get It Up",null,21,9,"NR- The Strikers",12,null,null,"START Times Approx…  Start Immediately after the game ahead"]
[null,null,"Grass 1","SARC- Sets on the Beach","SARC- Good Bumps, Nice Sets",null,21,0,"SARC- Good Bumps, Nice Sets",21]
[null,null,"Grass 2","SARC- Volleywood","CT- Shankapotomus",null,21,3,"SARC- Volleywood",18,null,null,null,"Sand 3"]
[null,"08:30:00","Sand 1","SPN- Sponsors","GS- Sand Gators",null,21,16,"GS- Sand Gators",5,null,null,"05:30:00","NR- Six Pack Attack vs LKP- Bumpin' Uglies"]
[null,null,"Sand 2","CT- Norfolk in Chance ","LKP- Go Bump in the Night",null,21,9,"CT- Norfolk in Chance ",12,null,null,"06:00:00","SARC- Notorious D.I.G. vs NR- The Strikers"]
[null,null,"Sand 3","SARC- Mizfits","GS- Swampmasters",null,21,10,"GS- Swampmasters",11,null,null,"06:30:00","GS- Gator Spikedown vs SARC- Mizfits"]
[null,"09:00:00","Sand 1","SARC- I'd Hit That","GS- Rhymes With Stupid",null,21,14,"SARC- I'd Hit That",7,null,null,"07:00:00","SARC- Raleigh Brawl vs SARC- Notorious D.I.G."]
[null,null,"Sand 2","LKP- Tir-Na-Nog","SARC- Sand Diggers",null,21,18,"SARC- Sand Diggers",3,null,null,"07:30:00","LKP- Air Vectors vs GS- Rhymes With Stupid"]
[null,null,"Sand 3","GS- Sand Gators","SARC- Sets on the Beach",null,21,14,"GS- Sand Gators",7,null,null,"08:00:00","NR- The Strikers vs SARC- Get It Up"]
[null,"09:30:00","Sand 1","CT- The Snafu Crew","CT- Shankapotomus",null,21,13,"CT- Shankapotomus",8,null,null,"08:30:00","SARC- Mizfits vs GS- Swampmasters"]
[null,null,"Sand 2","SARC- Sand Diggers","SARC- Good Bumps, Nice Sets",null,21,14,"SARC- Sand Diggers",7,null,null,"09:00:00","GS- Sand Gators vs SARC- Sets on the Beach"]
[null,null,"Sand 3","CT- Norfolk in Chance ","SARC- Volleywood",null,21,17,"CT- Norfolk in Chance ",4,null,null,"09:30:00","CT- Norfolk in Chance  vs SARC- Volleywood"]
[null,"10:00:00","Sand 1","SARC- Volleywood","LKP- Will Play for Sets",null,21,11,"SARC- Volleywood",10,null,null,"10:00:00","LKP- Go Bump in the Night vs LKP- Tir-Na-Nog"]
[null,null,"Sand 2","CT- Shankapotomus","SARC- Sets on the Beach",null,21,9,"SARC- Sets on the Beach",12,null,null,"START Times Approx…  Start Immediately after the game ahead"]
[null,null,"Sand 3","LKP- Go Bump in the Night","LKP- Tir-Na-Nog",null,21,11,"LKP- Tir-Na-Nog",10]
[null,null,null,null,null,null,null,null,null,null,null,null,null,"Grass 1"]
[null,null,null,"STANDINGS","Night 1",null,null,null,null,null,null,null,"05:30:00","SARC- Dirt Devils vs LKP- Air Vectors"]
[null,null,null,null,null,null,null,null,null,null,null,null,"06:00:00","GS- Rhymes With Stupid vs SARC- Get It Up"]
[null,null,"GS","Sand Gators","3-0",null,null,null,null,null,null,null,"06:30:00","LKP- Bumpin' Uglies vs LKP- Casual Sets"]
[null,null,"GS","Swampmasters","3-0",null,null,null,null,null,null,null,"07:00:00","LKP- Go Bump in the Night vs GS- Sand Gators"]
[null,null,"LKP","Air Vectors","3-0",null,null,null,null,null,null,null,"07:30:00","CT- The Snafu Crew vs LKP- Tir-Na-Nog"]
[null,null,"LKP","Bumpin' Uglies","3-0",null,null,null,null,null,null,null,"08:00:00","SARC- Sets on the Beach vs SARC- Good Bumps, Nice Sets"]
[null,null,"SARC","Id Hit That","3-0"]
[null,null,"SARC","Sand Diggers","3-0",null,null,null,null,null,null,null,"START Times Approx…  Start Immediately after the game ahead"]
[null,null,"CT","Norfolk in Chance","2-1"]
[null,null,"LKP","Casual Sets","2-1"]
[null,null,"LKP","Tir-Na-Nog","2-1",null,null,null,null,null,null,null,null,"Grass 2"]
[null,null,"LKP","Will Play for Sets","2-1",null,null,null,null,null,null,null,"05:30:00","SARC- Mojo Rising vs SARC- Notorious D.I.G."]
[null,null,"NR","The Strikers","2-1",null,null,null,null,null,null,null,"06:00:00","LKP- Will Play for Sets vs NR- Six Pack Attack"]
[null,null,"SARC","Good Bumps, Nice Sets","2-1",null,null,null,null,null,null,null,"06:30:00","NR- The Strikers vs SO- Seven Oaks"]
[null,null,"SARC","Notorious D.I.G.","2-1",null,null,null,null,null,null,null,"07:00:00","SARC- Sand Diggers vs CT- Norfolk in Chance "]
[null,null,"SARC","Raleigh Brawl","2-1",null,null,null,null,null,null,null,"07:30:00","GS- Swampmasters vs GS- Gator Spikedown"]
[null,null,"SARC","Volleywood","2-1",null,null,null,null,null,null,null,"08:00:00","SARC- Volleywood vs CT- Shankapotomus"]
[null,null,"CT","Shankapotomus","1-2"]
[null,null,"GS","Gator Spikedown","1-2",null,null,null,null,null,null,null,"START Times Approx…  Start Immediately after the game ahead"]
[null,null,"NR","Six Pack Attack","1-2"]
[null,null,"SARC","Get it Up","1-2"]
[null,null,"SARC","Sets on the Beach","1-2"]
[null,null,"SO","Seven Oaks","1-2"]
[null,null,"CT","The Snafu Crew","0-3"]
[null,null,"GS","Rhymes With Stupid","0-3"]
[null,null,"LKP","Go Bump in the Night","0-3"]
[null,null,"SARC","Dirt Devils","0-3"]
[null,null,"SARC","Mizfits","0-3"]
[null,null,"SARC","Mojo Rising","0-3"]
[null,null,"SPN","Sponsors","0-3"]

{"sheet":"Night 2","index":3,"n_rows":103,"n_cols":9,"rows_kept":103,"cut":false,"hidden":false,"merged":[]}
["Aug 6st","8 different courts at 4 locations  "]
["Night 2","Play 4 games each… "]
[null,"Brackets are Based on Teams from each COLUMN"]
["SPRINGDALE"]
[null,null,"Court 1",null,null,"   Score"]
["Teams playing at Springdale",null,null,"Home","Away","W","L","Winner","Pt Diff"]
["(12 teams playing on 3 courts)",1,"18:00:00","LKP- Go Bump in the Night","SARC- Sand Diggers"]
["LKP- Go Bump in the Night",2,"18:30:00","CT- The Snafu Crew","LKP- Go Bump in the Night"]
["CT- The Snafu Crew",3,"19:00:00","SARC- Volleywood","CT- The Snafu Crew"]
["SARC- Volleywood",4,"19:30:00","LKP- Go Bump in the Night","SARC- Mojo Rising"]
["SARC- Sets on the Beach",5,"20:00:00","SARC- Sand Diggers","CT- The Snafu Crew"]
["SARC- Sand Diggers",6,"20:30:00","LKP- Go Bump in the Night","SARC- Sets on the Beach"]
["SARC- Mojo Rising",7,"21:00:00","SARC- Sand Diggers","SARC- Volleywood"]
[null,8,"21:30:00","CT- The Snafu Crew","SARC- Mojo Rising"]
["LKP- Bumpin' Uglies",9,"22:00:00","SARC- Mojo Rising","SARC- Sets on the Beach"]
["SARC- I'd Hit That"]
["SARC- Mizfits",null,"Court 2",null,null,"   Score"]
["SPN- Sponsors",null,null,"Home","Away","W","L","Winner","Pt Diff"]
["SARC- Raleigh Brawl",1,"18:00:00","LKP- Bumpin' Uglies","SARC- Raleigh Brawl"]
["SARC- Notorious D.I.G.",2,"18:30:00","SARC- Mizfits","SPN- Sponsors"]
[null,3,"19:00:00","SARC- Mizfits","SARC- Raleigh Brawl"]
[null,4,"19:30:00","SPN- Sponsors","SARC- I'd Hit That"]
[null,5,"20:00:00","SARC- Raleigh Brawl","SARC- I'd Hit That"]
[null,6,"20:30:00","LKP- Bumpin' Uglies","SARC- Mizfits"]
[null,7,"21:00:00","SARC- Raleigh Brawl","SPN- Sponsors"]
[null,8,"21:30:00","SARC- I'd Hit That","SARC- Notorious D.I.G."]
[null,9,"22:00:00","SARC- Notorious D.I.G.","SARC- Mizfits"]
[]
[null,null,"Court 3",null,null,"   Score"]
[null,null,null,"Home","Away","W","L","Winner","Pt Diff"]
[null,null,"18:00:00","SARC- Sets on the Beach","SARC- Volleywood"]
[null,null,"18:30:00","SARC- I'd Hit That","LKP- Bumpin' Uglies"]
[null,null,"19:00:00","SARC- Sets on the Beach","SARC- Sand Diggers"]
[null,null,"19:30:00","SARC- Notorious D.I.G.","LKP- Bumpin' Uglies"]
[null,null,"20:00:00","SARC- Mojo Rising","SARC- Volleywood"]
[null,null,"20:30:00","SPN- Sponsors","SARC- Notorious D.I.G."]
["Aug 6st"]
["Night 2"]
["LAKE PARK",null,"Court 1",null,null,"   Score"]
[null,null,null,"Home","Away","W","L","Winner","Pt Diff"]
["Teams playing at Lake Park",null,"18:00:00","GS- Gator Spikedown","SARC- Get It Up"]
["(6 teams on 2 courts)",null,"18:30:00","SO- Seven Oaks","GS- Gator Spikedown"]
["GS- Gator Spikedown",null,"19:00:00","LKP- Casual Sets","LKP- Air Vectors"]
["SO- Seven Oaks",null,"19:30:00","LKP- Air Vectors","GS- Gator Spikedown"]
["LKP- Casual Sets",null,"20:00:00","GS- Gator Spikedown","LKP- Will Play for Sets"]
["LKP- Air Vectors",null,"20:30:00","SARC- Get It Up","LKP- Casual Sets"]
["SARC- Get It Up",null,"21:00:00"]
["LKP- Will Play for Sets"]
[null,null,"Court 2",null,null,"   Score"]
[null,null,null,"Home","Away","W","L","Winner","Pt Diff"]
[null,null,"18:00:00","SO- Seven Oaks","LKP- Air Vectors"]
[null,null,"18:30:00","LKP- Will Play for Sets","LKP- Casual Sets"]
[null,null,"19:00:00","LKP- Will Play for Sets","SARC- Get It Up"]
[null,null,"19:30:00","SARC- Get It Up","SO- Seven Oaks"]
[null,null,"20:00:00","LKP- Casual Sets","SO- Seven Oaks"]
[null,null,"20:30:00","LKP- Air Vectors","LKP- Will Play for Sets"]
[null,null,"21:00:00"]
[]
[]
["Aug 6st"]
["Night 2"]
[]
["CRABTREE",null,null,null,null,"   Score"]
[null,null,null,"Home","Away","W","L","Winner","Pt Diff"]
["Teams playing at Crabtree",1,"18:00:00","CT- Shankapotomus","GS-Sand Gators"]
["(5 teams on 1 court)",2,"18:30:00","CT- Norfolk in Chance ","CT- Shankapotomus"]
["CT- Shankapotomus",3,"19:00:00","LKP - Tir Na Nog","GS-Sand Gators"]
["CT- Norfolk in Chance ",4,"19:30:00","SARC-Good Bumps, Nice Sets","CT- Shankapotomus"]
["LKP - Tir Na Nog",5,"20:00:00","GS-Sand Gators","CT- Norfolk in Chance "]
["SARC-Good Bumps, Nice Sets",6,"20:30:00","CT- Shankapotomus","LKP - Tir Na Nog"]
["GS-Sand Gators",7,"21:00:00","GS-Sand Gators","SARC-Good Bumps, Nice Sets"]
[null,8,"21:30:00","CT- Norfolk in Chance ","LKP - Tir Na Nog"]
[null,9,"22:00:00","LKP - Tir Na Nog","SARC-Good Bumps, Nice Sets"]
[null,10,"22:30:00","SARC-Good Bumps, Nice Sets","CT- Norfolk in Chance "]
[]
[]
[]
["Aug 6st"]
["Night 2"]
[]
[]
[]
["GREYSTONE"]
[null,null,"Court 1",null,null,"   Score"]
["Teams playing at Greystone",null,null,"Home","Away","W","L","Winner","Pt Diff"]
["(5 teams on 2 courts)",1,"18:00:00","GS- Rhymes With Stupid","SARC- Dirt Devils"]
["GS- Rhymes With Stupid",2,"18:30:00","NR- Six Pack Attack","GS- Rhymes With Stupid"]
["NR- Six Pack Attack",3,"19:00:00","NR- The Strikers","SARC- Dirt Devils"]
["NR- The Strikers",4,"19:30:00","GS- Swampmasters","GS- Rhymes With Stupid"]
["GS- Swampmasters",5,"20:00:00","GS- Rhymes With Stupid","NR- The Strikers"]
["SARC- Dirt Devils",6,"20:30:00","SARC- Dirt Devils","GS- Swampmasters"]
[null,7,"21:00:00","NR- Six Pack Attack","NR- The Strikers"]
[null,8,"21:30:00"]
[]
[]
[null,null,"Court 2",null,null,"   Score"]
[null,null,null,"Home","Away","W","L","Winner","Pt Diff"]
[null,1,"18:00:00","GS- Swampmasters","NR- Six Pack Attack"]
[null,2,"18:30:00","NR- The Strikers","GS- Swampmasters"]
[null,3,"19:00:00"]
[null,4,"19:30:00","SARC- Dirt Devils","NR- Six Pack Attack"]
[null,5,"20:00:00"]
[null,6,"20:30:00"]

{"sheet":"Night 4 - Final Seeds","index":4,"n_rows":50,"n_cols":20,"rows_kept":50,"cut":false,"hidden":true,"merged":[]}
["Aug 21 Championship Night Brackets",null,null,null,null,null,"court 1","court 2","court 3",null,null,null,"Standings After 3 Weeks-"]
["25 TEAM SINGLE ELIMINATION SEEDED TOURNAMENT"]
[]
["17:30:00","18:00:00","18:30:00","19:00:00","19:30:00","20:00:00","20:30:00","21:00:00","21:30:00",null,"22:05:00"]
[]
[]
[null,null,null,null,null,null,null,"  Announce-ments and Raffle","FINAL FOUR","5   min  ","GROWLER CHAMPIONSHIP",null,"Championship Seed","Team","Night 1","Night 2","Night 3","Overall","1st Tie Break","2nd Tie Break- Point Differential of all games  *"]
[null,"LKP-Meatballs",16]
[null,null,null,"LKP-Meatballs",null,null,null,null,null,null,null,null,1,"SARC-Volleywood","3-0","4-0","4-0","11-0",null,125]
[null,"GS-Swampmasters",17,null,null,null,null,null,null,null,null,null,2,"LKP- Will Play for Sets","3-0","4-0","3-1","10-1","didn't play each other- use pts",110]
[null,null,null,null,null,"SARC-Volleywood",null,null,null,null,null,null,3,"NR- Six Pack Attack","2-1","4-0","4-0","10-1","didn't play each other- use pts",100]
[null,null,null,"SARC-Volleywood",1,null,null,null,null,null,null,null,4,"SARC-Sand Diggers","3-0","3-1","3-1","9-2","S Diggers beat Bazinga",74]
["Seven Oaks",8,null,null,null,null,null,null,null,null,null,null,5,"LKP-Bazinga","2-1","4-0","3-1","9-2","lost to S Diggers",61]
[null,null,null,"Seven Oaks",null,null,null,null,"SARC-Volleywood",null,null,null,6,"SARC-I'd Hit That","3-0","2-2","3-1","8-3","I'd Hit That beat Sharks",34]
["GS-Spiked Gators",25,null,null,null,null,null,null,null,null,null,null,7,"CT-Sand Sharks","2-1","3-1","3-1","8-3","lost to I'd Hit That",51]
[null,null,null,null,null,null,null,null,null,null,null,null,8,"Seven Oaks","1-2","3-1","3-1","7-4","5 way tie- didn't all play each- use pts",63]
["SARC-Raleigh Brawl",9,null,null,null,"Seven Oaks",null,null,null,null,null,null,9,"SARC-Raleigh Brawl","2-1","3-1","2-2","7-4","5 way tie- didn't all play each- use pts",40]
[null,null,null,"SARC-Raleigh Brawl",null,null,null,null,null,null,null,null,10,"CT-Scared Hitless","2-1","3-1","2-2","7-4","5 way tie- didn't all play each- use pts",39]
["SARC-Mizfits",24,null,null,null,null,null,null,null,null,null,null,11,"LKP-The Killers","2-1","1-3","4-0","7-4","5 way tie- didn't all play each- use pts",29]
[null,null,null,"LKP-Bazinga",5,null,null,null,null,null,"SARC-Volleywood",null,12,"SARC-Good Bumps,Nice Sets","2-1","2-2","3-1","7-4","5 way tie- didn't all play each- use pts",12]
["SARC-Good Bumps,",null,null,null,null,null,null,null,null,null,null,null,13,"NR-The Strikers","1-2","3-1","2-2","6-5","didn't play each other- use pts",41]
["Nice Sets",12,null,"SARC-Good Bumps,",null,null,"LKP-Bazinga",null,null,null,null,null,14,"LKP-Bumpn' Uglies","2-1","2-2","2-2","6-5","didn't play each other- use pts",5]
[null,null,null,"Nice Sets",null,null,null,null,null,null,null,null,15,"GS-Gator Done!","2-1","2-2","1-3","5-6",null,-21]
["SARC-Mojo Rising",21,null,null,null,null,null,null,null,null,null,null,16,"LKP-Meatballs","1-2","0-4","3-1","4-7",null,-36]
[null,null,null,null,"SARC-Sand Diggers",4,null,null,"NR-The Strikers",null,null,null,17,"GS-Swampmasters","0-3","1-3","2-2","3-8","3 played each other- SM won both",-55]
[null,null,null,null,null,null,null,null,null,null,null,null,18,"HodgePodge","2-1","0-4","1-3","3-8","HodgeP beat Steel, lost to SM",-40]
[null,"SARC-Dirt Devils",20,null,null,null,"NR-The Strikers",null,null,null,null,null,19,"CT-Serves of Steel","1-2","2-2","0-4","3-8","3 played each other- Steel lost both",-59]
[null,null,null,null,"NR-The Strikers",null,null,null,null,null,null,null,20,"SARC-Dirt Devils","0-3","1-3","1-3","2-9","didn't play each other- use pts",-65]
[null,null,null,null,null,null,null,null,null,null,null,null,21,"SARC-Mojo Rising","1-2","1-3","0-4","2-9","didn't play each other- use pts",-91]
[null,"NR-The Strikers",13,null,null,null,null,null,null,null,null,null,22,"SARC-Sets On the Beach","1-2","0-4","0-4","1-10","4 way tie- didn't all play each- use pts",-55]
[null,null,null,null,"LKP- Will Play for Sets",2,null,null,null,null,null,null,23,"GS-Sand Gators","0-3","0-4","1-3","1-10","4 way tie- didn't all play each- use pts",-97]
[null,null,"GS-Gator Done!",15,null,null,null,null,null,null,null,"SARC-Volleywood",24,"SARC-Mizfits**","0-4","1-3","0-4","1-11","4 way tie- didn't all play each- use pts","-118"]
[null,null,null,null,null,null,"LKP- Will Play for Sets",null,null,null,null,null,25,"GS-Spiked Gators","0-3","1-3","0-4","1-10","4 way tie- didn't all play each- use pts",-135]
[null,null,null,null,"HodgePodge"]
[null,null,"HodgePodge",18]
[null,null,null,null,null,"CT-Sand Sharks",7,null,"LKP- Will Play for Sets"]
[null,null,null,null,null,null,null,null,null,null,null,null,"* 2nd Tie Break rule states that worse game is thrown out.  These pts don't reflect that, but I did check all situations and a throw out would not efffect the outcome."]
[null,null,"CT-Scared Hitless",10,null,null,"CT-Scared Hitless",null,null,null,null,null,"**Mizfits played an extra game-  Seeding based on wins not loses.  Point Diff. adjusted based on ave pt differential (130 unadjusted).  Did not affect outcome"]
[null,null,null,null,null,"CT-Scared Hitless"]
[]
[null,null,"GS-Sand Gators",23,null,"SARC-I'd Hit That",6,null,null,null,"LKP- Will Play for Sets"]
[null,null,"LKP-The Killers",11]
[null,null,null,null,null,null,"SARC-I'd Hit That"]
[null,null,"SARC-Sets",null,null,"LKP-The Killers"]
[null,null," On the Beach",22]
[null,null,null,null,"NR- Six Pack Attack",3,null,null,"LKP-Bumpn' Uglies"]
[null,"CT-Serves of Steel",19]
[null,null,null,null,null,null,"LKP-Bumpn' Uglies"]
[null,null,null,null,"LKP-Bumpn' Uglies"]
[null,"LKP-Bumpn' Uglies",14]

{"sheet":"Night 3","index":5,"n_rows":103,"n_cols":9,"rows_kept":103,"cut":false,"hidden":false,"merged":[]}
["Aug 13th","8 different courts at 4 locations  "]
["Night 3","Play 4 games each… "]
[null,"Brackets are Based on Teams from each COLUMN"]
["SPRINGDALE"]
[null,null,"Court 1",null,null,"   Score"]
["Teams playing at Springdale",null,null,"Home","Away","W","L","Winner","Pt Diff"]
["(12 teams playing on 3 courts)",1,"18:00:00","GS- Swampmasters","SO- Seven Oaks"]
[null,2,"18:30:00","SARC- Notorious D.I.G.","SARC- Good Bumps, Nice Sets"]
["SO- Seven Oaks",3,"19:00:00","SPN- Sponsors","SARC- Volleywood"]
["SARC- Good Bumps, Nice Sets",4,"19:30:00","SARC- Notorious D.I.G.","GS- Swampmasters"]
["SARC- Volleywood",5,"20:00:00","SPN- Sponsors","SARC- Good Bumps, Nice Sets"]
["GS- Swampmasters",6,"20:30:00","SARC- Volleywood","SARC- Notorious D.I.G."]
["SARC- Notorious D.I.G.",7,"21:00:00","SARC- Notorious D.I.G.","SO- Seven Oaks"]
["SPN- Sponsors",8,"21:30:00","SO- Seven Oaks","SPN- Sponsors"]
[null,9,"22:00:00","SARC- Volleywood","SARC- Good Bumps, Nice Sets"]
["GS- Sand Gators"]
["SARC- Sand Diggers",null,"Court 2",null,null,"   Score"]
["SARC- Get It Up",null,null,"Home","Away","W","L","Winner","Pt Diff"]
["SARC- Raleigh Brawl",1,"18:00:00","GS- Sand Gators","SARC- Raleigh Brawl"]
["SARC- Mojo Rising",2,"18:30:00","SARC- Sand Diggers","SARC- Dirt Devils"]
["SARC- Dirt Devils",3,"19:00:00","GS- Sand Gators","SARC- Get It Up"]
[null,4,"19:30:00","SARC- Get It Up","SARC- Mojo Rising"]
[null,5,"20:00:00","SARC- Raleigh Brawl","SARC- Dirt Devils"]
[null,6,"20:30:00","SARC- Mojo Rising","SARC- Dirt Devils"]
[null,7,"21:00:00","SARC- Get It Up","SARC- Raleigh Brawl"]
[null,8,"21:30:00","SARC- Sand Diggers","SARC- Mojo Rising"]
[null,9,"22:00:00","SARC- Mojo Rising","GS- Sand Gators"]
[]
[null,null,"Court 3",null,null,"   Score"]
[null,null,null,"Home","Away","W","L","Winner","Pt Diff"]
[null,null,"18:00:00","SARC- Dirt Devils","SARC- Get It Up"]
[null,null,"18:30:00","SARC- Volleywood","GS- Swampmasters"]
[null,null,"19:00:00","SARC- Raleigh Brawl","SARC- Sand Diggers"]
[null,null,"19:30:00","SARC- Good Bumps, Nice Sets","SO- Seven Oaks"]
[null,null,"20:00:00","GS- Sand Gators","SARC- Sand Diggers"]
[null,null,"20:30:00","SPN- Sponsors","GS- Swampmasters"]
["Aug 13th"]
["Night 3"]
["LAKE PARK",null,"Court 1",null,null,"   Score"]
[null,null,null,"Home","Away","W","L","Winner","Pt Diff"]
["Teams playing at Lake Park",null,"18:00:00","SARC- Mizfits","SARC- Sets on the Beach"]
["(6 teams on 2 courts)",null,"18:30:00","NR- The Strikers","LKP- Will Play for Sets"]
[null,null,"19:00:00","LKP- Casual Sets","SARC- Sets on the Beach"]
["SARC- Mizfits",null,"19:30:00","SARC- Mizfits","NR- The Strikers"]
["NR- The Strikers",null,"20:00:00","LKP- Tir-Na-Nog","LKP- Will Play for Sets"]
["LKP- Casual Sets",null,"20:30:00","LKP- Will Play for Sets","SARC- Sets on the Beach"]
["LKP- Tir-Na-Nog",null,"21:00:00"]
["LKP- Will Play for Sets"]
["SARC- Sets on the Beach",null,"Court 2",null,null,"   Score"]
[null,null,null,"Home","Away","W","L","Winner","Pt Diff"]
[null,null,"18:00:00","NR- The Strikers","LKP- Tir-Na-Nog"]
[null,null,"18:30:00","LKP- Tir-Na-Nog","LKP- Casual Sets"]
[null,null,"19:00:00","LKP- Will Play for Sets","SARC- Mizfits"]
[null,null,"19:30:00","SARC- Sets on the Beach","LKP- Tir-Na-Nog"]
[null,null,"20:00:00","NR- The Strikers","LKP- Casual Sets"]
[null,null,"20:30:00","LKP- Casual Sets","SARC- Mizfits"]
[null,null,"21:00:00"]
[]
[]
["Aug 13th"]
["Night 3"]
[]
["CRABTREE",null,null,null,null,"   Score"]
[null,null,null,"Home","Away","W","L","Winner","Pt Diff"]
["Teams playing at Crabtree",1,"18:00:00","NR- Six Pack","LKP- Air Vectors"]
["(5 teams on 1 court)",2,"18:30:00","CT- The Snafu Crew","NR- Six Pack"]
[null,3,"19:00:00","CT- Norfolk in Chance ","LKP- Air Vectors"]
["NR- Six Pack",4,"19:30:00","SARC-Id Hit That","NR- Six Pack"]
["CT- The Snafu Crew",5,"20:00:00","LKP- Air Vectors","CT- The Snafu Crew"]
["CT- Norfolk in Chance ",6,"20:30:00","NR- Six Pack","CT- Norfolk in Chance "]
["SARC-Id Hit That",7,"21:00:00","LKP- Air Vectors","SARC-Id Hit That"]
["LKP- Air Vectors",8,"21:30:00","CT- The Snafu Crew","CT- Norfolk in Chance "]
[null,9,"22:00:00","CT- Norfolk in Chance ","SARC-Id Hit That"]
[null,10,"22:30:00","SARC-Id Hit That","CT- The Snafu Crew"]
[]
[]
[]
["Aug 13th"]
["Night 3"]
[]
[]
[]
["GREYSTONE"]
[null,null,"Court 1",null,null,"   Score"]
["Teams playing at Greystone",null,null,"Home","Away","W","L","Winner","Pt Diff"]
["(5 teams on 2 courts)",1,"18:00:00","GS- Rhymes With Stupid","GS- Gator Spikedown"]
[null,2,"18:30:00","LKP- Go Bump in the Night","GS- Rhymes With Stupid"]
["GS- Rhymes With Stupid",3,"19:00:00","CT- Shankapotomus","GS- Gator Spikedown"]
["LKP- Go Bump in the Night",4,"19:30:00","LKP- Bumpin' Uglies","GS- Rhymes With Stupid"]
["CT- Shankapotomus",5,"20:00:00","GS- Rhymes With Stupid","CT- Shankapotomus"]
["LKP- Bumpin' Uglies",6,"20:30:00","GS- Gator Spikedown","LKP- Bumpin' Uglies"]
["GS- Gator Spikedown",7,"21:00:00","LKP- Go Bump in the Night","CT- Shankapotomus"]
[null,8,"21:30:00"]
[]
[]
[null,null,"Court 2",null,null,"   Score"]
[null,null,null,"Home","Away","W","L","Winner","Pt Diff"]
[null,1,"18:00:00","LKP- Bumpin' Uglies","LKP- Go Bump in the Night"]
[null,2,"18:30:00","CT- Shankapotomus","LKP- Bumpin' Uglies"]
[null,3,"19:00:00"]
[null,4,"19:30:00","GS- Gator Spikedown","LKP- Go Bump in the Night"]
[null,5,"20:00:00"]
[null,6,"20:30:00"]